[Event "Titled Tuesday Blitz June 1 2021"]
[White "davigator"]
[Black "Palachev, Petr"]
[BlackFideId "24129003"]
[WhiteElo "2441"]
[BlackElo "2333"]
[Result "1-0"]
[Round "07"]
[TimeControl "180+1"]
[Date "2021.06.01"]
[WhiteClock "0:00:51"]
[BlackClock "0:00:03"]

1. e4 {[%clk 0:03:00]}  c6 {[%clk 0:02:05]} 2. Nc3 {[%clk 0:02:58]}  d5 {[%clk 0:02:06]} 3. Nf3 {[%clk 0:02:56]}  Bg4 {[%clk 0:02:04]} 4. h3 {[%clk 0:02:55]}  Bxf3 {[%clk 0:02:04]} 5. Qxf3 {[%clk 0:02:55]}  e6 {[%clk 0:02:05]} 6. d4 {[%clk 0:02:54]}  dxe4 {[%clk 0:02:03]} 7. Nxe4 {[%clk 0:02:53]}  Qxd4 {[%clk 0:02:03]} 8. Bd3 {[%clk 0:02:53]}  Nf6 {[%clk 0:02:01]} 9. O-O {[%clk 0:02:52]}  Nxe4 {[%clk 0:02:00]} 10. Bxe4 {[%clk 0:02:52]}  Be7 {[%clk 0:02:00]} 11. Be3 {[%clk 0:02:51]}  Qf6 {[%clk 0:01:59]} 12. Qg3 {[%clk 0:02:42]}  O-O {[%clk 0:01:58]} 13. c3 {[%clk 0:02:40]}  Na6 {[%clk 0:01:49]} 14. Bd4 {[%clk 0:02:35]}  Qh6 {[%clk 0:01:49]} 15. Be3 {[%clk 0:02:33]}  Qh4 {[%clk 0:01:49]} 16. Qf3 {[%clk 0:02:28]}  Qf6 {[%clk 0:01:44]} 17. Qg3 {[%clk 0:02:22]}  Qh4 {[%clk 0:01:36]} 18. Qf3 {[%clk 0:02:21]}  Bg5 {[%clk 0:01:20]} 19. Bd4 {[%clk 0:02:16]}  Bf6 {[%clk 0:01:14]} 20. Be3 {[%clk 0:02:12]}  Rfd8 {[%clk 0:01:04]} 21. Rad1 {[%clk 0:02:08]}  Rxd1 {[%clk 0:00:41]} 22. Rxd1 {[%clk 0:02:07]}  Rd8 {[%clk 0:00:42]} 23. Rxd8+ {[%clk 0:02:04]}  Bxd8 {[%clk 0:00:43]} 24. Bxa7 {[%clk 0:02:03]}  Qg5 {[%clk 0:00:37]} 25. Be3 {[%clk 0:02:01]}  Qb5 {[%clk 0:00:33]} 26. b3 {[%clk 0:01:58]}  Bf6 {[%clk 0:00:30]} 27. c4 {[%clk 0:01:57]}  Qa5 {[%clk 0:00:28]} 28. Qe2 {[%clk 0:01:56]}  Qc3 {[%clk 0:00:24]} 29. g3 {[%clk 0:01:51]}  Nb4 {[%clk 0:00:22]} 30. Kg2 {[%clk 0:01:50]}  g6 {[%clk 0:00:17]} 31. Bc5 {[%clk 0:01:44]}  Na6 {[%clk 0:00:12]} 32. Be3 {[%clk 0:01:36]}  Kg7 {[%clk 0:00:10]} 33. Qd2 {[%clk 0:01:34]}  Qxd2 {[%clk 0:00:10]} 34. Bxd2 {[%clk 0:01:34]}  Be7 {[%clk 0:00:09]} 35. f4 {[%clk 0:01:31]}  Bb4 {[%clk 0:00:08]} 36. Bc1 {[%clk 0:01:31]}  Bc3 {[%clk 0:00:08]} 37. a3 {[%clk 0:01:30]}  f5 {[%clk 0:00:06]} 38. Bc2 {[%clk 0:01:30]}  Kf6 {[%clk 0:00:06]} 39. Kf3 {[%clk 0:01:30]}  e5 {[%clk 0:00:06]} 40. fxe5+ {[%clk 0:01:30]}  Bxe5 {[%clk 0:00:07]} 41. Be3 {[%clk 0:01:27]}  Bb2 {[%clk 0:00:05]} 42. a4 {[%clk 0:01:26]}  Bc3 {[%clk 0:00:03]} 43. h4 {[%clk 0:01:21]}  Nc7 {[%clk 0:00:03]} 44. Bg5+ {[%clk 0:01:20]}  Kf7 {[%clk 0:00:03]} 45. Ke3 {[%clk 0:01:08]}  Ne6 {[%clk 0:00:04]} 46. Bh6 {[%clk 0:01:08]}  Be5 {[%clk 0:00:04]} 47. Kf2 {[%clk 0:01:05]}  f4 {[%clk 0:00:04]} 48. g4 {[%clk 0:01:03]}  Bf6 {[%clk 0:00:03]} 49. h5 {[%clk 0:01:02]}  g5 {[%clk 0:00:02]} 50. Bxh7 {[%clk 0:01:00]}  Bd4+ {[%clk 0:00:02]} 51. Kf3 {[%clk 0:01:00]}  Kf6 {[%clk 0:00:01]} 52. Bf5 {[%clk 0:00:58]}  Nc5 {[%clk 0:00:01]} 53. Bc2 {[%clk 0:00:57]}  Nxb3 {[%clk 0:00:02]} 54. Bxb3 {[%clk 0:00:57]}  Bb6 {[%clk 0:00:03]} 55. Ke4 {[%clk 0:00:56]}  Bc5 {[%clk 0:00:03]} 56. Bd1 {[%clk 0:00:56]}  Be7 {[%clk 0:00:03]} 57. Bf3 {[%clk 0:00:55]}  Bd6 {[%clk 0:00:03]} 58. Kd4 {[%clk 0:00:53]}  Be7 {[%clk 0:00:03]} 59. c5 {[%clk 0:00:53]}  Kf7 {[%clk 0:00:03]} 60. Ke5 {[%clk 0:00:52]}  Bxc5 {[%clk 0:00:03]} 61. Bxg5 {[%clk 0:00:51]} 1-0


[Site "https://www.chess.com"]

[Event "Titled Tuesday Blitz June 1 2021"]
[White "Donchenko, Alexander"]
[Black "Willow, Jonah B"]
[WhiteFideId "24603295"]
[BlackFideId "438804"]
[WhiteElo "2553"]
[BlackElo "2261"]
[Result "0-1"]
[Round "08"]
[TimeControl "180+1"]
[Date "2021.06.01"]
[WhiteClock "0:00:03"]
[BlackClock "0:00:12"]

1. e4 {[%clk 0:03:00]}  c5 {[%clk 0:02:59]} 2. Nf3 {[%clk 0:03:01]}  Nc6 {[%clk 0:02:58]} 3. Bb5 {[%clk 0:03:00]}  g6 {[%clk 0:02:58]} 4. Bxc6 {[%clk 0:03:00]}  dxc6 {[%clk 0:02:59]} 5. d3 {[%clk 0:03:00]}  Bg7 {[%clk 0:02:59]} 6. h3 {[%clk 0:03:01]}  e5 {[%clk 0:02:57]} 7. Be3 {[%clk 0:02:59]}  b6 {[%clk 0:02:52]} 8. a4 {[%clk 0:02:59]}  Ne7 {[%clk 0:02:44]} 9. a5 {[%clk 0:02:58]}  Be6 {[%clk 0:02:40]} 10. Qd2 {[%clk 0:02:55]}  h6 {[%clk 0:02:37]} 11. Na3 {[%clk 0:02:53]}  g5 {[%clk 0:02:33]} 12. Nc4 {[%clk 0:02:50]}  Bxc4 {[%clk 0:02:27]} 13. dxc4 {[%clk 0:02:51]}  O-O {[%clk 0:02:27]} 14. Qxd8 {[%clk 0:02:46]}  Rfxd8 {[%clk 0:02:28]} 15. Ke2 {[%clk 0:02:44]}  Ng6 {[%clk 0:02:23]} 16. Rhd1 {[%clk 0:02:37]}  Nf4+ {[%clk 0:02:15]} 17. Bxf4 {[%clk 0:02:27]}  exf4 {[%clk 0:02:16]} 18. Rxd8+ {[%clk 0:02:24]}  Rxd8 {[%clk 0:02:15]} 19. axb6 {[%clk 0:02:25]}  axb6 {[%clk 0:02:16]} 20. Ra6 {[%clk 0:02:22]}  Rb8 {[%clk 0:02:00]} 21. b3 {[%clk 0:02:20]}  Kf8 {[%clk 0:01:58]} 22. h4 {[%clk 0:02:09]}  Bf6 {[%clk 0:01:57]} 23. hxg5 {[%clk 0:02:08]}  hxg5 {[%clk 0:01:58]} 24. Nh2 {[%clk 0:02:08]}  Ke7 {[%clk 0:01:46]} 25. Ng4 {[%clk 0:02:07]}  Ke6 {[%clk 0:01:46]} 26. Ra7 {[%clk 0:02:03]}  Be7 {[%clk 0:01:35]} 27. Nh6 {[%clk 0:01:51]}  b5 {[%clk 0:01:05]} 28. Nf5 {[%clk 0:01:50]}  Bd8 {[%clk 0:01:01]} 29. Kd3 {[%clk 0:01:48]}  Bb6 {[%clk 0:00:55]} 30. Re7+ {[%clk 0:01:42]}  Kf6 {[%clk 0:00:56]} 31. Rd7 {[%clk 0:01:42]}  Rd8 {[%clk 0:00:51]} 32. Rxd8 {[%clk 0:01:33]}  Bxd8 {[%clk 0:00:52]} 33. cxb5 {[%clk 0:01:21]}  cxb5 {[%clk 0:00:53]} 34. Nd6 {[%clk 0:01:22]}  g4 {[%clk 0:00:53]} 35. f3 {[%clk 0:01:19]}  b4 {[%clk 0:00:50]} 36. Kc4 {[%clk 0:01:14]}  Be7 {[%clk 0:00:45]} 37. Kd5 {[%clk 0:01:00]}  Kg5 {[%clk 0:00:45]} 38. Nxf7+ {[%clk 0:00:55]}  Kh4 {[%clk 0:00:45]} 39. Ne5 {[%clk 0:00:52]}  Kg3 {[%clk 0:00:43]} 40. Nxg4 {[%clk 0:00:26]}  Kxg2 {[%clk 0:00:43]} 41. Ne5 {[%clk 0:00:24]}  Bf6 {[%clk 0:00:43]} 42. Nd7 {[%clk 0:00:21]}  Be7 {[%clk 0:00:37]} 43. Ne5 {[%clk 0:00:16]}  Bf6 {[%clk 0:00:37]} 44. Nd3 {[%clk 0:00:05]}  Kxf3 {[%clk 0:00:36]} 45. e5 {[%clk 0:00:04]}  Be7 {[%clk 0:00:35]} 46. Nxc5 {[%clk 0:00:03]}  Ke3 {[%clk 0:00:30]} 47. Nd3 {[%clk 0:00:03]}  f3 {[%clk 0:00:30]} 48. Ke6 {[%clk 0:00:03]}  Bd8 {[%clk 0:00:16]} 49. Kd7 {[%clk 0:00:03]}  Bh4 {[%clk 0:00:16]} 50. e6 {[%clk 0:00:02]}  Kd2 {[%clk 0:00:17]} 51. e7 {[%clk 0:00:02]}  Bxe7 {[%clk 0:00:17]} 52. Kxe7 {[%clk 0:00:03]}  Kxc2 {[%clk 0:00:18]} 53. Nxb4+ {[%clk 0:00:02]}  Kd2 {[%clk 0:00:15]} 54. Nc6 {[%clk 0:00:01]}  f2 {[%clk 0:00:16]} 55. Ne5 {[%clk 0:00:01]}  f1=Q {[%clk 0:00:16]} 56. Nc4+ {[%clk 0:00:01]}  Kc3 {[%clk 0:00:17]} 57. Nd6 {[%clk 0:00:01]}  Kxb3 {[%clk 0:00:17]} 58. Ke6 {[%clk 0:00:02]}  Kb4 {[%clk 0:00:16]} 59. Nf5 {[%clk 0:00:03]}  Qe2+ {[%clk 0:00:16]} 60. Kf6 {[%clk 0:00:03]}  Kc5 {[%clk 0:00:17]} 61. Ng7 {[%clk 0:00:03]}  Qf3+ {[%clk 0:00:17]} 62. Nf5 {[%clk 0:00:03]}  Kd5 {[%clk 0:00:17]} 63. Kg6 {[%clk 0:00:04]}  Qg4+ {[%clk 0:00:17]} 64. Kf6 {[%clk 0:00:04]}  Ke4 {[%clk 0:00:15]} 65. Nd6+ {[%clk 0:00:04]}  Kf4 {[%clk 0:00:16]} 66. Nf7 {[%clk 0:00:04]}  Qf5+ {[%clk 0:00:15]} 67. Ke7 {[%clk 0:00:05]}  Qa5 {[%clk 0:00:13]} 68. Kf6 {[%clk 0:00:04]}  Qb6+ {[%clk 0:00:12]} 69. Ke7 {[%clk 0:00:05]}  Qa6 {[%clk 0:00:12]} 70. Nd6 {[%clk 0:00:05]}  Ke5 {[%clk 0:00:12]} 71. Nf7+ {[%clk 0:00:05]}  Kd5 {[%clk 0:00:12]} 72. Ng5 {[%clk 0:00:04]}  Qg6 {[%clk 0:00:11]} 73. Nf7 {[%clk 0:00:04]}  Qg7 {[%clk 0:00:10]} 74. Ke8 {[%clk 0:00:03]}  Ke6 {[%clk 0:00:11]} 75. Nd8+ {[%clk 0:00:04]}  Kf6 {[%clk 0:00:12]} 76. Nc6 {[%clk 0:00:03]}  Qc7 {[%clk 0:00:12]} 0-1


[Site "https://www.chess.com"]

[Event "Titled Tuesday Blitz June 1 2021"]
[White "Grigorov, Grigor"]
[Black "Abdusattorov, Nodirbek"]
[WhiteFideId "2907313"]
[BlackFideId "14204118"]
[WhiteElo "2510"]
[BlackElo "2662"]
[Result "0-1"]
[Round "08"]
[TimeControl "180+1"]
[Date "2021.06.01"]
[WhiteClock "0:00:12"]
[BlackClock "0:01:33"]

1. d4 {[%clk 0:03:00]}  Nf6 {[%clk 0:02:59]} 2. Nf3 {[%clk 0:02:59]}  c5 {[%clk 0:02:59]} 3. d5 {[%clk 0:02:58]}  g6 {[%clk 0:02:59]} 4. c4 {[%clk 0:02:59]}  Bg7 {[%clk 0:02:59]} 5. Nc3 {[%clk 0:02:58]}  O-O {[%clk 0:03:00]} 6. e4 {[%clk 0:02:58]}  d6 {[%clk 0:03:00]} 7. Be2 {[%clk 0:02:56]}  e5 {[%clk 0:03:01]} 8. O-O {[%clk 0:02:53]}  Ne8 {[%clk 0:02:57]} 9. Ne1 {[%clk 0:02:52]}  Nd7 {[%clk 0:02:55]} 10. Nd3 {[%clk 0:02:50]}  f5 {[%clk 0:02:54]} 11. exf5 {[%clk 0:02:23]}  gxf5 {[%clk 0:02:53]} 12. f4 {[%clk 0:02:23]}  e4 {[%clk 0:02:51]} 13. Nf2 {[%clk 0:02:24]}  Bd4 {[%clk 0:02:49]} 14. Kh1 {[%clk 0:02:20]}  a6 {[%clk 0:02:43]} 15. Qe1 {[%clk 0:02:16]}  Ng7 {[%clk 0:02:42]} 16. Nfd1 {[%clk 0:02:10]}  Nf6 {[%clk 0:02:37]} 17. Ne3 {[%clk 0:02:09]}  h5 {[%clk 0:02:36]} 18. Nc2 {[%clk 0:01:59]}  Ng4 {[%clk 0:02:32]} 19. h3 {[%clk 0:01:53]}  Kf7 {[%clk 0:02:28]} 20. g3 {[%clk 0:01:30]}  Rh8 {[%clk 0:02:26]} 21. Kg2 {[%clk 0:01:29]}  Nf6 {[%clk 0:02:18]} 22. Qd2 {[%clk 0:01:12]}  h4 {[%clk 0:02:18]} 23. Nxd4 {[%clk 0:01:11]}  cxd4 {[%clk 0:02:19]} 24. Qxd4 {[%clk 0:01:11]}  Ngh5 {[%clk 0:02:14]} 25. g4 {[%clk 0:01:00]}  fxg4 {[%clk 0:02:12]} 26. hxg4 {[%clk 0:01:00]}  Bxg4 {[%clk 0:02:12]} 27. Bxg4 {[%clk 0:00:56]}  Rg8 {[%clk 0:02:10]} 28. Nxe4 {[%clk 0:00:50]}  Rxg4+ {[%clk 0:02:10]} 29. Kf2 {[%clk 0:00:48]}  Nxe4+ {[%clk 0:01:44]} 30. Qxe4 {[%clk 0:00:47]}  Qf6 {[%clk 0:01:45]} 31. Qe6+ {[%clk 0:00:28]}  Qxe6 {[%clk 0:01:45]} 32. dxe6+ {[%clk 0:00:29]}  Kxe6 {[%clk 0:01:46]} 33. Kf3 {[%clk 0:00:24]}  Rag8 {[%clk 0:01:44]} 34. Be3 {[%clk 0:00:21]}  Rg2 {[%clk 0:01:44]} 35. Bf2 {[%clk 0:00:16]}  h3 {[%clk 0:01:43]} 36. Rfe1+ {[%clk 0:00:13]}  Kf5 {[%clk 0:01:34]} 37. Rad1 {[%clk 0:00:13]}  Nxf4 {[%clk 0:01:33]} 38. Re4 {[%clk 0:00:12]}  Rxf2+ {[%clk 0:01:33]} 0-1


[Site "https://www.chess.com"]

[Event "Titled Tuesday Blitz June 1 2021"]
[White "Kezin, Roman"]
[Black "Oparin, Grigoriy"]
[WhiteFideId "24124621"]
[BlackFideId "24125890"]
[WhiteElo "2574"]
[BlackElo "2628"]
[Result "1-0"]
[Round "08"]
[TimeControl "180+1"]
[Date "2021.06.01"]
[WhiteClock "0:00:49"]
[BlackClock "0:00:33"]

1. d4 {[%clk 0:02:56]}  Nf6 {[%clk 0:02:59]} 2. c4 {[%clk 0:02:56]}  e6 {[%clk 0:03:00]} 3. g3 {[%clk 0:02:55]}  c5 {[%clk 0:02:59]} 4. d5 {[%clk 0:02:55]}  exd5 {[%clk 0:03:00]} 5. cxd5 {[%clk 0:02:56]}  d6 {[%clk 0:03:00]} 6. Nc3 {[%clk 0:02:53]}  g6 {[%clk 0:03:01]} 7. Nf3 {[%clk 0:02:52]}  Bg7 {[%clk 0:03:01]} 8. Bg2 {[%clk 0:02:52]}  O-O {[%clk 0:03:02]} 9. O-O {[%clk 0:02:53]}  Re8 {[%clk 0:03:02]} 10. Nd2 {[%clk 0:02:48]}  Nbd7 {[%clk 0:03:00]} 11. a4 {[%clk 0:02:46]}  a6 {[%clk 0:03:00]} 12. h3 {[%clk 0:02:46]}  Ne5 {[%clk 0:02:53]} 13. f4 {[%clk 0:02:38]}  Ned7 {[%clk 0:02:48]} 14. e4 {[%clk 0:02:38]}  c4 {[%clk 0:02:45]} 15. Nxc4 {[%clk 0:02:33]}  Nc5 {[%clk 0:02:45]} 16. e5 {[%clk 0:02:30]}  dxe5 {[%clk 0:02:39]} 17. fxe5 {[%clk 0:02:31]}  Nh5 {[%clk 0:02:39]} 18. Qf3 {[%clk 0:02:32]}  Nxg3 {[%clk 0:01:50]} 19. Qxg3 {[%clk 0:02:28]}  b5 {[%clk 0:01:50]} 20. axb5 {[%clk 0:02:21]}  axb5 {[%clk 0:01:51]} 21. Rxa8 {[%clk 0:02:19]}  bxc4 {[%clk 0:01:51]} 22. Qf3 {[%clk 0:02:01]}  Rf8 {[%clk 0:01:39]} 23. Kh1 {[%clk 0:01:52]}  Nd3 {[%clk 0:01:36]} 24. Bf4 {[%clk 0:01:46]}  Qb6 {[%clk 0:01:32]} 25. Be3 {[%clk 0:01:23]}  Qxb2 {[%clk 0:01:31]} 26. Rxc8 {[%clk 0:01:20]}  Rxc8 {[%clk 0:01:28]} 27. Qxf7+ {[%clk 0:01:20]}  Kh8 {[%clk 0:01:29]} 28. Bd4 {[%clk 0:01:06]}  Rf8 {[%clk 0:01:12]} 29. Qxf8+ {[%clk 0:01:05]}  Bxf8 {[%clk 0:01:13]} 30. Rxf8+ {[%clk 0:01:06]}  Kg7 {[%clk 0:01:13]} 31. Rf1 {[%clk 0:01:06]}  Kh6 {[%clk 0:01:08]} 32. e6 {[%clk 0:01:06]}  Qa3 {[%clk 0:00:54]} 33. Ne4 {[%clk 0:01:03]}  c3 {[%clk 0:00:45]} 34. Bxc3 {[%clk 0:00:59]}  Nc5 {[%clk 0:00:39]} 35. Bd2+ {[%clk 0:00:55]}  g5 {[%clk 0:00:33]} 36. Bxg5+ {[%clk 0:00:53]}  Kh5 {[%clk 0:00:33]} 37. Be7 {[%clk 0:00:49]} 1-0


[Site "https://www.chess.com"]

[Event "Titled Tuesday Blitz June 1 2021"]
[White "Kovalev, Vladislav"]
[Black "Yeletsky, Ivan"]
[WhiteFideId "13504398"]
[BlackFideId "24180327"]
[WhiteElo "2573"]
[BlackElo "2344"]
[Result "1/2-1/2"]
[Round "08"]
[TimeControl "180+1"]
[Date "2021.06.01"]
[WhiteClock "0:00:19"]
[BlackClock "0:01:06"]

1. e4 {[%clk 0:03:00]}  c5 {[%clk 0:02:59]} 2. Be2 {[%clk 0:03:01]}  Nc6 {[%clk 0:02:58]} 3. d3 {[%clk 0:03:01]}  e6 {[%clk 0:02:58]} 4. f4 {[%clk 0:03:01]}  d5 {[%clk 0:02:59]} 5. c3 {[%clk 0:02:59]}  Bd6 {[%clk 0:03:00]} 6. Nf3 {[%clk 0:02:58]}  Nge7 {[%clk 0:03:00]} 7. e5 {[%clk 0:02:57]}  Bc7 {[%clk 0:03:00]} 8. O-O {[%clk 0:02:56]}  d4 {[%clk 0:02:57]} 9. Na3 {[%clk 0:02:55]}  O-O {[%clk 0:02:51]} 10. Nc2 {[%clk 0:02:45]}  b6 {[%clk 0:02:47]} 11. cxd4 {[%clk 0:02:44]}  cxd4 {[%clk 0:02:47]} 12. b4 {[%clk 0:02:44]}  b5 {[%clk 0:02:43]} 13. a4 {[%clk 0:02:41]}  Rb8 {[%clk 0:02:38]} 14. a5 {[%clk 0:02:26]}  a6 {[%clk 0:02:36]} 15. Nd2 {[%clk 0:02:15]}  Nd5 {[%clk 0:02:34]} 16. Ne4 {[%clk 0:02:12]}  Ncxb4 {[%clk 0:02:31]} 17. Nxb4 {[%clk 0:02:12]}  Nxb4 {[%clk 0:02:31]} 18. Ba3 {[%clk 0:02:13]}  Bxa5 {[%clk 0:02:21]} 19. Qb3 {[%clk 0:02:07]}  Nd5 {[%clk 0:02:20]} 20. Bxf8 {[%clk 0:02:07]}  Kxf8 {[%clk 0:02:21]} 21. Nd6 {[%clk 0:01:29]}  Bb4 {[%clk 0:02:17]} 22. Bf3 {[%clk 0:01:17]}  Bxd6 {[%clk 0:02:14]} 23. exd6 {[%clk 0:01:06]}  Qxd6 {[%clk 0:01:47]} 24. Bxd5 {[%clk 0:01:05]}  Qxd5 {[%clk 0:01:39]} 25. Qxd5 {[%clk 0:00:44]}  exd5 {[%clk 0:01:39]} 26. Rfc1 {[%clk 0:00:35]}  Bf5 {[%clk 0:01:37]} 27. Rxa6 {[%clk 0:00:31]}  Bxd3 {[%clk 0:01:37]} 28. Rd1 {[%clk 0:00:29]}  Bc2 {[%clk 0:01:19]} 29. Rxd4 {[%clk 0:00:30]}  b4 {[%clk 0:01:19]} 30. Ra2 {[%clk 0:00:30]}  b3 {[%clk 0:01:20]} 31. Rb2 {[%clk 0:00:31]}  Ra8 {[%clk 0:01:18]} 32. Rxd5 {[%clk 0:00:27]}  g6 {[%clk 0:01:12]} 33. Kf2 {[%clk 0:00:26]}  h5 {[%clk 0:01:12]} 34. Rc5 {[%clk 0:00:20]}  Ra4 {[%clk 0:01:08]} 35. g3 {[%clk 0:00:20]}  Ke7 {[%clk 0:01:05]} 36. Rc7+ {[%clk 0:00:19]}  Kf6 {[%clk 0:01:05]} 37. Rcxc2 {[%clk 0:00:18]}  bxc2 {[%clk 0:01:06]} 38. Rxc2 {[%clk 0:00:19]} 1/2-1/2


[Site "https://www.chess.com"]

[Event "Titled Tuesday Blitz June 1 2021"]
[White "Kukhmazov, Arsen"]
[Black "Alavi, Sayed Javad"]
[WhiteFideId "24108260"]
[BlackFideId "12500607"]
[WhiteElo "2453"]
[BlackElo "2495"]
[Result "0-1"]
[Round "08"]
[TimeControl "180+1"]
[Date "2021.06.01"]
[WhiteClock "0:00:02"]
[BlackClock "0:00:13"]

1. d4 {[%clk 0:03:00]}  Nf6 {[%clk 0:02:58]} 2. c4 {[%clk 0:03:01]}  c6 {[%clk 0:02:58]} 3. Nf3 {[%clk 0:02:59]}  d5 {[%clk 0:02:58]} 4. Qc2 {[%clk 0:02:59]}  g6 {[%clk 0:02:57]} 5. Bf4 {[%clk 0:02:59]}  Bg7 {[%clk 0:02:56]} 6. e3 {[%clk 0:02:59]}  O-O {[%clk 0:02:55]} 7. Nc3 {[%clk 0:03:00]}  e6 {[%clk 0:02:49]} 8. Bd3 {[%clk 0:02:47]}  b6 {[%clk 0:02:38]} 9. O-O {[%clk 0:02:47]}  Bb7 {[%clk 0:02:33]} 10. Rfd1 {[%clk 0:02:47]}  Nbd7 {[%clk 0:02:29]} 11. h3 {[%clk 0:02:46]}  c5 {[%clk 0:02:21]} 12. cxd5 {[%clk 0:02:43]}  Nxd5 {[%clk 0:02:09]} 13. Nxd5 {[%clk 0:02:43]}  Bxd5 {[%clk 0:02:10]} 14. e4 {[%clk 0:02:43]}  Bb7 {[%clk 0:02:07]} 15. Bd6 {[%clk 0:02:43]}  cxd4 {[%clk 0:01:54]} 16. Bxf8 {[%clk 0:02:39]}  Kxf8 {[%clk 0:01:55]} 17. Qe2 {[%clk 0:02:01]}  Nc5 {[%clk 0:01:42]} 18. Bc2 {[%clk 0:01:36]}  Ba6 {[%clk 0:01:38]} 19. Qe1 {[%clk 0:01:31]}  d3 {[%clk 0:01:36]} 20. b4 {[%clk 0:01:30]}  Bxa1 {[%clk 0:01:32]} 21. bxc5 {[%clk 0:01:30]}  dxc2 {[%clk 0:01:14]} 22. Rxa1 {[%clk 0:01:19]}  Rc8 {[%clk 0:01:14]} 23. Rc1 {[%clk 0:00:52]}  Rxc5 {[%clk 0:01:11]} 24. Qe3 {[%clk 0:00:51]}  Qd1+ {[%clk 0:01:07]} 25. Kh2 {[%clk 0:00:51]}  Kg7 {[%clk 0:01:03]} 26. e5 {[%clk 0:00:41]}  h6 {[%clk 0:00:46]} 27. Qf4 {[%clk 0:00:32]}  Be2 {[%clk 0:00:41]} 28. Nd4 {[%clk 0:00:30]}  Kg8 {[%clk 0:00:24]} 29. Qe3 {[%clk 0:00:15]}  Ba6 {[%clk 0:00:20]} 30. a4 {[%clk 0:00:10]}  Qd3 {[%clk 0:00:16]} 31. Qf4 {[%clk 0:00:02]}  Rc4 {[%clk 0:00:16]} 32. Rxc2 {[%clk 0:00:01]}  Qxc2 {[%clk 0:00:13]} 33. Nxc2 {[%clk 0:00:02]}  Rxf4 {[%clk 0:00:13]} 0-1


[Site "https://www.chess.com"]

[Event "Titled Tuesday Blitz June 1 2021"]
[White "Moskalenko, Alexander"]
[Black "Urazayev, Arystanbek"]
[WhiteFideId "4155351"]
[BlackFideId "13709810"]
[WhiteElo "2495"]
[BlackElo "2321"]
[Result "1/2-1/2"]
[Round "08"]
[TimeControl "180+1"]
[Date "2021.06.01"]
[WhiteClock "0:00:04"]
[BlackClock "0:00:59"]

1. d4 {[%clk 0:03:00]}  d5 {[%clk 0:03:00]} 2. Bf4 {[%clk 0:03:01]}  Nf6 {[%clk 0:03:00]} 3. e3 {[%clk 0:03:01]}  e6 {[%clk 0:03:00]} 4. Nd2 {[%clk 0:03:01]}  c5 {[%clk 0:03:01]} 5. c3 {[%clk 0:03:01]}  Nc6 {[%clk 0:03:01]} 6. Ngf3 {[%clk 0:03:01]}  Nh5 {[%clk 0:03:02]} 7. Bg5 {[%clk 0:02:53]}  Qb6 {[%clk 0:03:02]} 8. Qb3 {[%clk 0:02:53]}  h6 {[%clk 0:03:01]} 9. Bh4 {[%clk 0:02:52]}  g5 {[%clk 0:03:01]} 10. Bg3 {[%clk 0:02:53]}  Nxg3 {[%clk 0:03:02]} 11. hxg3 {[%clk 0:02:53]}  Bg7 {[%clk 0:03:03]} 12. Be2 {[%clk 0:02:43]}  Bd7 {[%clk 0:03:01]} 13. Qa3 {[%clk 0:02:31]}  cxd4 {[%clk 0:02:47]} 14. exd4 {[%clk 0:02:22]}  O-O-O {[%clk 0:02:47]} 15. Nb3 {[%clk 0:02:08]}  Kb8 {[%clk 0:02:40]} 16. Nc5 {[%clk 0:02:02]}  Bc8 {[%clk 0:02:40]} 17. Qb3 {[%clk 0:02:01]}  g4 {[%clk 0:02:32]} 18. Nd2 {[%clk 0:00:47]}  e5 {[%clk 0:02:30]} 19. Qxb6 {[%clk 0:00:38]}  axb6 {[%clk 0:02:30]} 20. Ncb3 {[%clk 0:00:38]}  exd4 {[%clk 0:02:29]} 21. cxd4 {[%clk 0:00:33]}  Nxd4 {[%clk 0:02:29]} 22. Nxd4 {[%clk 0:00:34]}  Bxd4 {[%clk 0:02:29]} 23. Bd3 {[%clk 0:00:28]}  Bxb2 {[%clk 0:02:22]} 24. Rd1 {[%clk 0:00:28]}  Rde8+ {[%clk 0:02:17]} 25. Kf1 {[%clk 0:00:28]}  h5 {[%clk 0:02:13]} 26. Nb3 {[%clk 0:00:27]}  Re5 {[%clk 0:02:12]} 27. f4 {[%clk 0:00:24]}  gxf3 {[%clk 0:02:05]} 28. gxf3 {[%clk 0:00:25]}  Rg8 {[%clk 0:01:55]} 29. Kf2 {[%clk 0:00:25]}  Ba3 {[%clk 0:01:51]} 30. f4 {[%clk 0:00:22]}  Re7 {[%clk 0:01:48]} 31. Be2 {[%clk 0:00:23]}  Rxe2+ {[%clk 0:01:46]} 32. Kxe2 {[%clk 0:00:23]}  Bg4+ {[%clk 0:01:47]} 33. Kf2 {[%clk 0:00:21]}  Bxd1 {[%clk 0:01:47]} 34. Rxd1 {[%clk 0:00:22]}  Rd8 {[%clk 0:01:38]} 35. Rh1 {[%clk 0:00:22]}  d4 {[%clk 0:01:38]} 36. Rxh5 {[%clk 0:00:20]}  d3 {[%clk 0:01:39]} 37. Rh1 {[%clk 0:00:15]}  f5 {[%clk 0:01:31]} 38. Rd1 {[%clk 0:00:15]}  Bc5+ {[%clk 0:01:27]} 39. Kf3 {[%clk 0:00:15]}  Kc7 {[%clk 0:01:25]} 40. g4 {[%clk 0:00:15]}  fxg4+ {[%clk 0:01:25]} 41. Kxg4 {[%clk 0:00:16]}  Kc6 {[%clk 0:01:25]} 42. Kf3 {[%clk 0:00:10]}  Kb5 {[%clk 0:01:23]} 43. Ke4 {[%clk 0:00:10]}  Kc4 {[%clk 0:01:23]} 44. Rc1+ {[%clk 0:00:10]}  Kb4 {[%clk 0:01:23]} 45. Rd1 {[%clk 0:00:10]}  Kc3 {[%clk 0:01:24]} 46. Rc1+ {[%clk 0:00:05]}  Kb2 {[%clk 0:01:24]} 47. Rd1 {[%clk 0:00:05]}  d2 {[%clk 0:01:07]} 48. Rxd2+ {[%clk 0:00:05]}  Rxd2 {[%clk 0:01:08]} 49. Nxd2 {[%clk 0:00:06]}  Kxa2 {[%clk 0:01:09]} 50. Kd5 {[%clk 0:00:06]}  Be3 {[%clk 0:01:03]} 51. Nc4 {[%clk 0:00:06]}  Bxf4 {[%clk 0:01:03]} 52. Nxb6 {[%clk 0:00:06]}  Bc7 {[%clk 0:01:03]} 53. Nd7 {[%clk 0:00:04]}  Ka3 {[%clk 0:01:02]} 54. Kc5 {[%clk 0:00:04]}  Ka4 {[%clk 0:01:00]} 55. Kc4 {[%clk 0:00:04]}  b5+ {[%clk 0:01:00]} 56. Kc3 {[%clk 0:00:05]}  Ka3 {[%clk 0:00:58]} 57. Nc5 {[%clk 0:00:04]}  Bb6 {[%clk 0:00:57]} 58. Nb3 {[%clk 0:00:04]}  Bd8 {[%clk 0:00:57]} 59. Kc2 {[%clk 0:00:04]}  Bf6 {[%clk 0:00:57]} 60. Nd2 {[%clk 0:00:04]}  b4 {[%clk 0:00:57]} 61. Kb1 {[%clk 0:00:04]}  Bg5 {[%clk 0:00:56]} 62. Nc4+ {[%clk 0:00:05]}  Kb3 {[%clk 0:00:57]} 63. Na5+ {[%clk 0:00:05]}  Kc3 {[%clk 0:00:58]} 64. Nc6 {[%clk 0:00:03]}  b3 {[%clk 0:00:58]} 65. Na5 {[%clk 0:00:04]}  b2 {[%clk 0:00:59]} 66. Nc4 {[%clk 0:00:04]}  Bc1 {[%clk 0:00:59]} 67. Nxb2 {[%clk 0:00:04]} 1/2-1/2


[Site "https://www.chess.com"]